lending/lending_fUSD_20240120
["ID","MTS","AMOUNT","RATE_DAILY","PERIOD"]
[312286291,1705741846061,-500.0,0.00024931,2]
[312286293,1705741846070,-500.0,0.00024931,2]
[312286295,1705741846079,-1406.54,0.00024931,2]
[312286298,1705741846089,-500.0,0.00024931,2]
[312286300,1705741846098,-554.01,0.00024931,2]
[312286302,1705741846108,-500.0,0.00024931,2]
[312286303,1705741846118,-500.0,0.00024931,2]
[312286304,1705741846127,-792.94,0.00024931,2]
[312286305,1705741846137,-500.0,0.00024931,2]
[312286306,1705741846146,-26.37943711,0.00024931,2]
[312286307,1705741846158,-473.62056289,0.00024931,2]
[312286308,1705741846167,-500.0,0.00024931,2]
[312286309,1705741846177,-500.0,0.00024931,2]
[312286310,1705741846186,-115.32227995,0.00024931,2]
[312286311,1705741846421,-405.00113522,0.00024931,2]
[312286312,1705741846434,-569.85819587,0.00024931,2]
[312286313,1705741846448,-144.00838896,0.00024931,2]
[312286314,1705741846458,-124.01233486,0.00024931,2]
[312286315,1705741846469,-375.98766514,0.00024931,2]
[312286316,1705741846480,-165.89712567,0.00024931,2]
[312286317,1705741846491,-334.10287433,0.00024931,2]
[312286318,1705741846500,-1093.58,0.00024931,2]
[312286319,1705741846510,-556.05,0.00024931,2]
[312286320,1705741846520,-500.0,0.00024931,2]
[312286321,1705741846529,-1069.38,0.00024931,2]
[312286322,1705741846540,-315.76861091,0.00024931,2]
[312286323,1705741846549,-500.0,0.00024931,2]
[312286324,1705741846559,-360.37,0.00024931,2]
[312286325,1705741846568,-500.0,0.00024931,2]
[312286326,1705741846578,-500.0,0.00024931,2]
[312286327,1705741846587,-500.0,0.00024931,2]
[312286328,1705741846597,-2143.47,0.00024931,2]
[312286329,1705741846606,-500.0,0.00024931,2]
[312286330,1705741846615,-500.0,0.00024931,2]
[312286331,1705741846625,-500.0,0.00024931,2]
[312286332,1705741846634,-766.22,0.00024931,2]
[312286333,1705741846644,-500.0,0.00024931,2]
[312286334,1705741846653,-606.35566044,0.00024931,2]
[312286335,1705741846662,-500.0,0.00024931,2]
[312286336,1705741846672,-500.0,0.00024931,2]
[312286337,1705741846682,-500.0,0.00024931,2]
[312286338,1705741846691,-500.0,0.00024931,2]
[312286339,1705741846700,-2684.58,0.00024931,2]
[312286340,1705741846709,-1462.82,0.00024931,2]
[312286341,1705741846718,-1168.59,0.00024931,2]
[312286342,1705741846728,-505.56923946,0.00024931,2]
[312286343,1705741846737,-163.17,0.00024976,2]
[312286344,1705741846746,-1584.56156338,0.00025,2]
[312286345,1705741846756,-933.94016922,0.00025,2]
[312286346,1705741846765,-154.46003819,0.00025,2]
[312286347,1705741846777,-3069.63889084,0.00025,2]
[312286348,1705741846789,-11775.90107097,0.00025,2]
[312286349,1705741846799,-201.79352657,0.00025204,2]
[312286350,1705741846808,-500.0,0.00025204,2]
[312286351,1705741846817,-1000.0,0.00025205,2]
[312286352,1705741846826,-500.0,0.00025205,2]
[312286353,1705741846835,-584.21279007,0.00025205,2]
[312286354,1705741846844,-500.0,0.00025205,2]
[312286355,1705741846854,-500.0,0.00025205,2]
[312286356,1705741846863,-1167.0,0.00025205,2]
[312286357,1705741846872,-500.0,0.00025205,2]
[312286358,1705741846881,-468.37254296,0.00025205,2]
[312286359,1705741846890,-500.0,0.00025205,2]
[312286360,1705741846900,-500.0,0.00025205,2]
[312286361,1705741846910,-500.0,0.00025205,2]
[312286362,1705741846919,-500.0,0.00025205,2]
[312286363,1705741846928,-281.99,0.00025205,2]
[312286364,1705741846938,-355.13543987,0.00025205,2]
[312286365,1705741846947,-282.53622799,0.00025205,2]
[312286366,1705741846956,-397.55835865,0.00025205,2]
[312286367,1705741846967,-567.9453003,0.00025205,2]
[312286368,1705741846976,-500.0,0.00025205,2]
[312286369,1705741846985,-500.0,0.00025205,2]
[312286370,1705741846995,-500.0,0.00025205,2]
[312286371,1705741847004,-500.0,0.00025205,2]
[312286372,1705741847013,-299.0,0.00025205,2]
[312286373,1705741847023,-500.0,0.00025205,2]
[312286374,1705741847032,-780.43,0.00025205,2]
[312286375,1705741847041,-500.0,0.00025205,2]
[312286376,1705741847050,-500.0,0.00025205,2]
[312286377,1705741847059,-500.0,0.00025205,2]
[312286378,1705741847068,-500.0,0.00025205,2]
[312286379,1705741847077,-500.0,0.00025205,2]
[312286380,1705741847087,-500.0,0.00025205,2]
[312286381,1705741847096,-500.0,0.00025205,2]
[312286382,1705741847105,-500.0,0.00025205,2]
[312286383,1705741847114,-308.0202126,0.00025205,2]
[312286384,1705741847124,-500.0,0.00025205,2]
[312286385,1705741847133,-519.85,0.00025205,2]
[312286386,1705741847143,-500.0,0.00025205,2]
[312286387,1705741847152,-500.0,0.00025205,2]
[312286388,1705741847161,-1536.86,0.00025205,2]
[312286389,1705741847170,-546.93,0.00025205,2]
[312286390,1705741847179,-500.0,0.00025205,2]
[312286391,1705741847188,-500.0,0.00025205,2]
[312286392,1705741847197,-500.0,0.00025205,2]
[312286393,1705741847206,-500.0,0.00025205,2]
[312286394,1705741847215,-500.0,0.00025205,2]
[312286395,1705741847224,-500.0,0.00025205,2]
[312286396,1705741847233,-439.32274786,0.00025205,2]
[312286397,1705741847242,-500.0,0.00025205,2]
[312286398,1705741847252,-627.55226022,0.00025205,2]
[312286399,1705741847261,-654.3,0.00025205,2]
[312286400,1705741847271,-500.0,0.00025205,2]
[312286401,1705741847280,-748.65,0.00025205,2]
[312286402,1705741847291,-500.0,0.00025205,2]
[312286403,1705741847300,-561.23,0.00025205,2]
[312286404,1705741847309,-1015.01,0.00025205,2]
[312286405,1705741847319,-740.7,0.00025205,2]
[312286406,1705741847328,-6556.22,0.00025205,2]
[312286407,1705741847338,-264.13411197,0.00025205,2]
[312286408,1705741847352,-2.03435229,0.00025205,2]
[312286409,1705741847361,-500.0,0.00025205,2]
[312286410,1705741847370,-500.0,0.00025205,2]
[312286411,1705741847380,-500.0,0.00025205,2]
[312286412,1705741847389,-500.0,0.00025205,2]
[312286413,1705741847398,-1419.33,0.00025205,2]
[312286414,1705741847408,-500.0,0.00025205,2]
[312286415,1705741847417,-500.0,0.00025205,2]
[312286417,1705741847427,-163.98069917,0.00025205,2]
[312286420,1705741847448,-704.33930083,0.00025205,2]
[312286422,1705741847458,-1070.49,0.00025205,2]
[312286424,1705741847467,-1312.51,0.00025205,2]
[312286426,1705741847476,-2067.06,0.00025205,2]
[312286427,1705741847486,-500.0,0.00025205,2]
[312286429,1705741847495,-500.0,0.00025205,2]
[312286431,1705741847505,-2744.64,0.00025205,2]
[312286433,1705741847515,-500.0,0.00025205,2]
[312286435,1705741847525,-500.0,0.00025205,2]
[312286437,1705741847534,-596.61,0.00025205,2]
[312286439,1705741847543,-512.55,0.00025205,2]
[312286441,1705741847553,-500.0,0.00025205,2]
[312286443,1705741847563,-500.0,0.00025205,2]
[312286444,1705741847572,-500.0,0.00025205,2]
[312286446,1705741847582,-500.0,0.00025205,2]
[312286448,1705741847592,-500.0,0.00025205,2]
[312286450,1705741847601,-1054.91,0.00025205,2]
[312286452,1705741847611,-500.0,0.00025205,2]
[312286454,1705741847621,-500.0,0.00025205,2]
[312286455,1705741847631,-500.0,0.00025205,2]
[312286457,1705741847640,-702.76,0.00025205,2]
[312286459,1705741847650,-500.0,0.00025205,2]
[312286461,1705741847659,-500.0,0.00025205,2]
[312286463,1705741847668,-500.0,0.00025205,2]
[312286465,1705741847678,-500.0,0.00025205,2]
[312286467,1705741847687,-741.49,0.00025205,2]
[312286469,1705741847697,-500.0,0.00025205,2]
[312286471,1705741847706,-500.0,0.00025205,2]
[312286473,1705741847715,-500.0,0.00025205,2]
[312286475,1705741847725,-500.0,0.00025205,2]
[312286477,1705741847734,-500.0,0.00025205,2]
[312286479,1705741847743,-500.0,0.00025205,2]
[312286481,1705741847753,-729.08,0.00025205,2]
[312286482,1705741847762,-500.0,0.00025205,2]
[312286484,1705741847771,-500.0,0.00025205,2]
[312286486,1705741847780,-500.0,0.00025205,2]
[312286488,1705741847790,-500.0,0.00025205,2]
[312286490,1705741847799,-250.0,0.00025205,2]
[312286491,1705741847809,-5239.03,0.00025205,2]
[312286492,1705741847818,-585.68,0.00025205,2]
[312286493,1705741847827,-500.0,0.00025205,2]
[312286494,1705741847837,-577.95,0.00025205,2]
[312286495,1705741847846,-1220.81,0.00025205,2]
[312286496,1705741847857,-500.0,0.00025205,2]
[312286497,1705741847866,-500.0,0.00025205,2]
[312286498,1705741847876,-878.0,0.00025205,2]
[312286499,1705741847885,-500.0,0.00025205,2]
[312286500,1705741847895,-3403.36,0.00025205,2]
[312286501,1705741847904,-5505.69,0.00025205,2]
[312286502,1705741847913,-500.0,0.00025205,2]
[312286503,1705741847922,-529.47,0.00025205,2]
[312286504,1705741847932,-508.02,0.00025205,2]
[312286505,1705741847941,-575.26,0.00025205,2]
[312286506,1705741847950,-500.0,0.00025205,2]
[312286507,1705741847959,-500.0,0.00025205,2]
[312286508,1705741847969,-500.0,0.00025205,2]
[312286509,1705741847977,-187.73082234,0.00025205,2]
[312286510,1705741847987,-561.07,0.00025205,2]
[312286511,1705741847996,-515.62,0.00025205,2]
[312286512,1705741848005,-500.0,0.00025205,2]
[312286513,1705741848015,-500.0,0.00025205,2]
[312286514,1705741848024,-500.0,0.00025205,2]
[312286515,1705741848034,-518.41,0.00025205,2]
[312286516,1705741848043,-718.87,0.00025205,2]
[312286517,1705741848052,-500.0,0.00025205,2]
[312286518,1705741848062,-500.0,0.00025205,2]
[312286519,1705741848071,-500.0,0.00025205,2]
[312286520,1705741848080,-500.0,0.00025205,2]
[312286521,1705741848089,-555.40805809,0.00025205,2]
[312286522,1705741848099,-238.56956157,0.00025205,2]
[312286523,1705741848108,-500.0,0.00025205,2]
[312286524,1705741848117,-500.0,0.00025205,2]
[312286525,1705741848127,-500.0,0.00025205,2]
[312286526,1705741848137,-746.54,0.00025205,2]
[312286527,1705741848146,-615.63026534,0.00025205,2]
[312286528,1705741848155,-500.0,0.00025205,2]
[312286529,1705741848167,-1406.54,0.00025205,2]
[312286530,1705741848176,-500.0,0.00025205,2]
[312286531,1705741848185,-554.01,0.00025205,2]
[312286532,1705741848194,-500.0,0.00025205,2]
[312286533,1705741848203,-500.0,0.00025205,2]
[312286534,1705741848212,-792.94,0.00025205,2]
[312286535,1705741848221,-500.0,0.00025205,2]
[312286536,1705741848231,-500.0,0.00025205,2]
[312286537,1705741848240,-500.0,0.00025205,2]
[312286538,1705741848249,-500.0,0.00025205,2]
[312286539,1705741848258,-1234.19,0.00025205,2]
[312286540,1705741848267,-500.0,0.00025205,2]
[312286541,1705741848276,-500.0,0.00025205,2]
[312286542,1705741848288,-1093.58,0.00025205,2]
[312286543,1705741848297,-556.05,0.00025205,2]
[312286544,1705741848306,-500.0,0.00025205,2]
[312286545,1705741848317,-1069.38,0.00025205,2]
[312286546,1705741848327,-500.0,0.00025205,2]
[312286547,1705741848337,-500.0,0.00025205,2]
[312286548,1705741848347,-500.0,0.00025205,2]
[312286549,1705741848359,-500.0,0.00025205,2]
[312286550,1705741848372,-2143.47,0.00025205,2]
[312286551,1705741848382,-500.0,0.00025205,2]
[312286552,1705741848391,-500.0,0.00025205,2]
[312286553,1705741848401,-500.0,0.00025205,2]
[312286554,1705741848412,-766.22,0.00025205,2]
[312286555,1705741848421,-500.0,0.00025205,2]
[312286556,1705741848431,-500.0,0.00025205,2]
[312286557,1705741848446,-500.0,0.00025205,2]
[312286558,1705741848454,-500.0,0.00025205,2]
[312286559,1705741848464,-2684.58,0.00025205,2]
[312286560,1705741848473,-649.79581475,0.00025205,2]
[312286561,1705741848482,-1462.82,0.00025205,2]
[312286562,1705741848491,-1168.59,0.00025205,2]
[312286563,1705741848500,-170.9,0.00025243,2]
[312286564,1705741848510,-205.0,0.00025288,2]
[312286565,1705741848520,-250.0,0.000253,2]
[312286566,1705741848529,-1225.89,0.00025403,2]
[312286567,1705741848540,-50000.0,0.00025411,2]
[312286568,1705741848549,-1000.0,0.00025479,2]
[312286569,1705741848558,-500.0,0.00025479,2]
[312286570,1705741848567,-224.96762021,0.00025479,2]
[312286571,1705741848576,-500.0,0.00025479,2]
[312286572,1705741848586,-1167.0,0.00025479,2]
[312286573,1705741848595,-500.0,0.00025479,2]
[312286574,1705741848604,-518.38710545,0.00025479,2]
[312286575,1705741848613,-500.0,0.00025479,2]
[312286576,1705741848622,-556.11941548,0.00025479,2]
[312286577,1705741848631,-259.79,0.00025479,2]
[312286578,1705741848640,-261.95,0.00025479,2]
[312286579,1705741848650,-500.0,0.00025479,2]
[312286580,1705741848660,-500.0,0.00025479,2]
[312286581,1705741848669,-500.0,0.00025479,2]
[312286582,1705741848678,-780.43,0.00025479,2]
[312286583,1705741848687,-500.0,0.00025479,2]
[312286584,1705741848696,-500.0,0.00025479,2]
[312286585,1705741848761,-500.0,0.00025479,2]
[312286586,1705741848771,-500.0,0.00025479,2]
[312286587,1705741848782,-500.0,0.00025479,2]
[312286588,1705741848792,-500.0,0.00025479,2]
[312286589,1705741848801,-500.0,0.00025479,2]
[312286590,1705741848810,-519.85,0.00025479,2]
[312286591,1705741848819,-500.0,0.00025479,2]
[312286592,1705741848829,-500.0,0.00025479,2]
[312286593,1705741848839,-1536.86,0.00025479,2]
[312286594,1705741848849,-546.93,0.00025479,2]
[312286595,1705741848860,-556.795333,0.00025479,2]
[312286596,1705741848871,-500.0,0.00025479,2]
[312286597,1705741848884,-500.0,0.00025479,2]
[312286598,1705741848892,-500.0,0.00025479,2]
[312286599,1705741848903,-500.0,0.00025479,2]
[312286600,1705741848912,-500.0,0.00025479,2]
[312286601,1705741848921,-654.3,0.00025479,2]
[312286602,1705741848931,-500.0,0.00025479,2]
[312286603,1705741848943,-748.65,0.00025479,2]
[312286604,1705741848953,-500.0,0.00025479,2]
[312286605,1705741848963,-561.23,0.00025479,2]
[312286606,1705741848973,-1015.01,0.00025479,2]
[312286607,1705741848984,-740.7,0.00025479,2]
[312286608,1705741848994,-6556.22,0.00025479,2]
[312286609,1705741849003,-500.0,0.00025479,2]
[312286610,1705741849012,-500.0,0.00025479,2]
[312286611,1705741849022,-500.0,0.00025479,2]
[312286612,1705741849031,-500.0,0.00025479,2]
[312286613,1705741849040,-1419.33,0.00025479,2]
[312286614,1705741849049,-500.0,0.00025479,2]
[312286615,1705741849059,-500.0,0.00025479,2]
[312286616,1705741849068,-868.32,0.00025479,2]
[312286617,1705741849077,-1070.49,0.00025479,2]
[312286618,1705741849086,-1312.51,0.00025479,2]
[312286619,1705741849095,-2067.06,0.00025479,2]
[312286620,1705741849104,-500.0,0.00025479,2]
[312286621,1705741849113,-500.0,0.00025479,2]
[312286622,1705741849122,-2744.64,0.00025479,2]
[312286623,1705741849131,-500.0,0.00025479,2]
[312286624,1705741849139,-500.0,0.00025479,2]
[312286625,1705741849148,-596.61,0.00025479,2]
[312286626,1705741849196,-512.55,0.00025479,2]
[312286627,1705741849205,-490.87153972,0.00025479,2]
[312286628,1705741849214,-500.0,0.00025479,2]
[312286629,1705741849224,-500.0,0.00025479,2]
[312286630,1705741849232,-500.0,0.00025479,2]
[312286631,1705741849241,-500.0,0.00025479,2]
[312286632,1705741849251,-1054.91,0.00025479,2]
[312286633,1705741849260,-500.0,0.00025479,2]
[312286634,1705741849269,-500.0,0.00025479,2]
[312286635,1705741849278,-702.76,0.00025479,2]
[312286636,1705741849287,-500.0,0.00025479,2]
[312286637,1705741849296,-500.0,0.00025479,2]
[312286638,1705741849305,-456.34878719,0.00025479,2]
[312286639,1705741849314,-500.0,0.00025479,2]
[312286640,1705741849323,-500.0,0.00025479,2]
[312286641,1705741849332,-500.0,0.00025479,2]
[312286642,1705741849341,-741.49,0.00025479,2]
[312286643,1705741849351,-500.0,0.00025479,2]
[312286644,1705741849360,-500.0,0.00025479,2]
[312286645,1705741849369,-500.0,0.00025479,2]
[312286646,1705741849378,-500.0,0.00025479,2]
[312286647,1705741849387,-500.0,0.00025479,2]
[312286648,1705741849396,-729.08,0.00025479,2]
[312286649,1705741849406,-500.0,0.00025479,2]
[312286650,1705741849415,-500.0,0.00025479,2]
[312286651,1705741849424,-500.0,0.00025479,2]
[312286652,1705741849433,-500.0,0.00025479,2]
[312286653,1705741849448,-250.0,0.00025479,2]
[312286654,1705741849457,-5239.03,0.00025479,2]
[312286655,1705741849466,-585.68,0.00025479,2]
[312286656,1705741849476,-500.0,0.00025479,2]
[312286657,1705741849485,-577.95,0.00025479,2]
[312286658,1705741849495,-1220.81,0.00025479,2]
[312286659,1705741849505,-500.0,0.00025479,2]
[312286660,1705741849513,-500.0,0.00025479,2]
[312286661,1705741849525,-878.0,0.00025479,2]
[312286662,1705741849536,-500.0,0.00025479,2]
[312286663,1705741849545,-3403.36,0.00025479,2]
[312286664,1705741849554,-5505.69,0.00025479,2]
[312286665,1705741849563,-500.0,0.00025479,2]
[312286666,1705741849572,-529.47,0.00025479,2]
[312286667,1705741849581,-508.02,0.00025479,2]
[312286668,1705741849590,-575.26,0.00025479,2]
[312286669,1705741849599,-500.0,0.00025479,2]
[312286670,1705741849609,-500.0,0.00025479,2]
[312286671,1705741849619,-500.0,0.00025479,2]
[312286672,1705741849628,-561.07,0.00025479,2]
[312286673,1705741849637,-515.62,0.00025479,2]
[312286674,1705741849647,-500.0,0.00025479,2]
[312286675,1705741849656,-500.0,0.00025479,2]
[312286676,1705741849665,-500.0,0.00025479,2]
[312286677,1705741849675,-518.41,0.00025479,2]
[312286678,1705741849684,-718.87,0.00025479,2]
[312286679,1705741849693,-500.0,0.00025479,2]
[312286680,1705741849702,-500.0,0.00025479,2]
[312286681,1705741849711,-500.0,0.00025479,2]
[312286682,1705741849720,-500.0,0.00025479,2]
[312286683,1705741849729,-500.0,0.00025479,2]
[312286684,1705741849738,-500.0,0.00025479,2]
[312286685,1705741849748,-500.0,0.00025479,2]
[312286686,1705741849757,-746.54,0.00025479,2]
[312286687,1705741849766,-500.0,0.00025479,2]
[312286688,1705741849775,-1406.54,0.00025479,2]
[312286689,1705741849786,-500.0,0.00025479,2]
[312286690,1705741849795,-554.01,0.00025479,2]
[312286691,1705741849804,-500.0,0.00025479,2]
[312286692,1705741849814,-169.79031232,0.00025479,2]
[312286693,1705741849823,-792.94,0.00025479,2]
[312286694,1705741849832,-500.0,0.00025479,2]
[312286695,1705741849842,-500.0,0.00025479,2]
[312286696,1705741849851,-500.0,0.00025479,2]
[312286697,1705741849860,-500.0,0.00025479,2]
[312286698,1705741849869,-1234.19,0.00025479,2]
[312286699,1705741849879,-500.0,0.00025479,2]
[312286700,1705741849889,-500.0,0.00025479,2]
[312286701,1705741849898,-1093.58,0.00025479,2]
[312286702,1705741849908,-500.0,0.00025479,2]
[312286703,1705741849918,-556.05,0.00025479,2]
[312286704,1705741849929,-1069.38,0.00025479,2]
[312286705,1705741849938,-500.0,0.00025479,2]
[312286706,1705741849949,-500.0,0.00025479,2]
[312286707,1705741849959,-500.0,0.00025479,2]
[312286708,1705741849969,-500.0,0.00025479,2]
[312286709,1705741849978,-2143.47,0.00025479,2]
[312286710,1705741849988,-500.0,0.00025479,2]
[312286711,1705741849997,-500.0,0.00025479,2]
[312286712,1705741850007,-500.0,0.00025479,2]
[312286713,1705741850016,-766.22,0.00025479,2]
[312286714,1705741850026,-500.0,0.00025479,2]
[312286715,1705741850037,-348.96239136,0.00025479,2]
[312286716,1705741850048,-500.0,0.00025479,2]
[312286717,1705741850058,-500.0,0.00025479,2]
[312286718,1705741850068,-2684.58,0.00025479,2]
[312286719,1705741850079,-1462.82,0.00025479,2]
[312286720,1705741850089,-1168.59,0.00025479,2]
[312286721,1705741850100,-500.0,0.00025488,2]
[312286722,1705741850110,-1708.4853603,0.0002551,2]
[312286723,1705741850121,-800.0,0.00025517,2]
[312286724,1705741850131,-206.61,0.00025518,2]
[312286725,1705741850141,-523.38,0.00025558,2]
[312286726,1705741850152,-2053.0,0.00025575,2]
[312286727,1705741850161,-4512.307083,0.000257,2]
[312286728,1705741850172,-504.0,0.0002575,2]
[312286729,1705741850182,-259.93348509,0.00025752,2]
[312286730,1705741850192,-1000.0,0.00025753,2]
[312286731,1705741850202,-500.0,0.00025753,2]
[312286732,1705741850212,-500.0,0.00025753,2]
[312286733,1705741850222,-1167.0,0.00025753,2]
[312286734,1705741850233,-500.0,0.00025753,2]
[312286735,1705741850242,-203.24043978,0.00025753,2]
[312286736,1705741850253,-500.0,0.00025753,2]
[312286737,1705741850263,-500.0,0.00025753,2]
[312286738,1705741850273,-500.0,0.00025753,2]
[312286739,1705741850283,-780.43,0.00025753,2]
[312286740,1705741850293,-500.0,0.00025753,2]
[312286741,1705741850304,-500.0,0.00025753,2]
[312286742,1705741850314,-500.0,0.00025753,2]
[312286743,1705741850324,-233.60565103,0.00025753,2]
[312286744,1705741850333,-500.0,0.00025753,2]
[312286745,1705741850343,-412.73354966,0.00025753,2]
[312286746,1705741850352,-500.0,0.00025753,2]
[312286747,1705741850362,-519.85,0.00025753,2]
[312286748,1705741850372,-649.38692203,0.00025753,2]
[312286749,1705741850383,-500.0,0.00025753,2]
[312286750,1705741850394,-1536.86,0.00025753,2]
[312286751,1705741850405,-546.93,0.00025753,2]
[312286752,1705741850415,-500.0,0.00025753,2]
[312286753,1705741850425,-500.0,0.00025753,2]
[312286754,1705741850436,-500.0,0.00025753,2]
[312286755,1705741850448,-500.0,0.00025753,2]
[312286756,1705741850458,-210.50421145,0.00025753,2]
[312286757,1705741850469,-654.3,0.00025753,2]
[312286758,1705741850479,-500.0,0.00025753,2]
[312286759,1705741850490,-748.65,0.00025753,2]
[312286760,1705741850500,-500.0,0.00025753,2]
[312286761,1705741850510,-561.23,0.00025753,2]
[312286762,1705741850523,-1015.01,0.00025753,2]
[312286763,1705741850534,-740.7,0.00025753,2]
[312286764,1705741850544,-6556.22,0.00025753,2]
[312286765,1705741850554,-500.0,0.00025753,2]
[312286766,1705741850565,-500.0,0.00025753,2]
[312286767,1705741850576,-500.0,0.00025753,2]
[312286768,1705741850586,-500.0,0.00025753,2]
[312286769,1705741850596,-1419.33,0.00025753,2]
[312286770,1705741850606,-500.0,0.00025753,2]
[312286771,1705741850616,-500.0,0.00025753,2]
[312286772,1705741850626,-868.32,0.00025753,2]
[312286773,1705741850637,-1070.49,0.00025753,2]
[312286774,1705741850648,-1312.51,0.00025753,2]
[312286775,1705741850658,-2067.06,0.00025753,2]
[312286776,1705741850668,-500.0,0.00025753,2]
[312286777,1705741850679,-500.0,0.00025753,2]
[312286778,1705741850689,-2744.64,0.00025753,2]
[312286779,1705741850699,-500.0,0.00025753,2]
[312286780,1705741850710,-500.0,0.00025753,2]
[312286781,1705741850720,-596.61,0.00025753,2]
[312286782,1705741850731,-512.55,0.00025753,2]
[312286783,1705741850742,-500.0,0.00025753,2]
[312286784,1705741850752,-500.0,0.00025753,2]
[312286785,1705741850762,-500.0,0.00025753,2]
[312286786,1705741850773,-500.0,0.00025753,2]
[312286787,1705741850784,-1054.91,0.00025753,2]
[312286788,1705741850794,-500.0,0.00025753,2]
[312286789,1705741850805,-500.0,0.00025753,2]
[312286790,1705741850815,-500.0,0.00025753,2]
[312286791,1705741850825,-702.76,0.00025753,2]
[312286792,1705741850836,-311.92,0.00025753,2]
[312286793,1705741850846,-500.0,0.00025753,2]
[312286794,1705741850857,-500.0,0.00025753,2]
[312286795,1705741850867,-500.0,0.00025753,2]
[312286796,1705741850877,-741.49,0.00025753,2]
[312286797,1705741850887,-500.0,0.00025753,2]
[312286798,1705741850897,-500.0,0.00025753,2]
[312286799,1705741850908,-500.0,0.00025753,2]
[312286800,1705741850919,-500.0,0.00025753,2]
[312286801,1705741850929,-500.0,0.00025753,2]
[312286802,1705741850939,-729.08,0.00025753,2]
[312286803,1705741850950,-500.0,0.00025753,2]
[312286804,1705741850961,-500.0,0.00025753,2]
[312286805,1705741850972,-500.0,0.00025753,2]
[312286806,1705741850982,-250.0,0.00025753,2]
[312286807,1705741850993,-500.0,0.00025753,2]
[312286808,1705741851003,-5239.03,0.00025753,2]
[312286809,1705741851014,-585.68,0.00025753,2]
[312286810,1705741851024,-500.0,0.00025753,2]
[312286811,1705741851034,-577.95,0.00025753,2]
[312286812,1705741851045,-1220.81,0.00025753,2]
[312286813,1705741851055,-500.0,0.00025753,2]
[312286814,1705741851065,-500.0,0.00025753,2]
[312286815,1705741851075,-878.0,0.00025753,2]
[312286816,1705741851085,-500.0,0.00025753,2]
[312286817,1705741851096,-3403.36,0.00025753,2]
[312286818,1705741851106,-500.0,0.00025753,2]
[312286819,1705741851116,-5505.69,0.00025753,2]
[312286820,1705741851127,-529.47,0.00025753,2]
[312286821,1705741851138,-508.02,0.00025753,2]
[312286822,1705741851148,-575.26,0.00025753,2]
[312286823,1705741851159,-500.0,0.00025753,2]
[312286824,1705741851169,-500.0,0.00025753,2]
[312286825,1705741851181,-500.0,0.00025753,2]
[312286826,1705741851193,-561.07,0.00025753,2]
[312286827,1705741851206,-515.62,0.00025753,2]
[312286828,1705741851218,-500.0,0.00025753,2]
[312286829,1705741851231,-500.0,0.00025753,2]
[312286830,1705741851243,-500.0,0.00025753,2]
[312286831,1705741851255,-518.41,0.00025753,2]
[312286832,1705741851266,-718.87,0.00025753,2]